[Event "Titled Tuesday Blitz November 22 Early 2022"]
[White "Chernov, Mikhail"]
[Black "Lamaze, Simon"]
[WhiteFideId "24143170"]
[BlackFideId "36069264"]
[WhiteElo "2113"]
[BlackElo "2272"]
[Result "0-1"]
[Round "03"]
[TimeControl "180+1"]
[Date "2022.11.23"]
[WhiteClock "0:00:30"]
[BlackClock "0:01:07"]

1. d4 {[%clk 0:02:59]}  Nf6 {[%clk 0:02:59]} 2. Nc3 {[%clk 0:02:59]}  g6 {[%clk 0:02:59]} 3. e4 {[%clk 0:02:59]}  d5 {[%clk 0:02:57]} 4. e5 {[%clk 0:02:59]}  Nh5 {[%clk 0:02:58]} 5. f4 {[%clk 0:02:57]}  Ng7 {[%clk 0:02:57]} 6. Nf3 {[%clk 0:02:57]}  h5 {[%clk 0:02:57]} 7. Be3 {[%clk 0:02:57]}  Bg4 {[%clk 0:02:57]} 8. h3 {[%clk 0:02:55]}  Bxf3 {[%clk 0:02:57]} 9. Qxf3 {[%clk 0:02:56]}  e6 {[%clk 0:02:55]} 10. Bd3 {[%clk 0:02:56]}  h4 {[%clk 0:02:56]} 11. Ne2 {[%clk 0:02:54]}  Nc6 {[%clk 0:02:55]} 12. c3 {[%clk 0:02:49]}  Ne7 {[%clk 0:02:55]} 13. O-O {[%clk 0:02:49]}  Nef5 {[%clk 0:02:54]} 14. Bf2 {[%clk 0:02:49]}  c6 {[%clk 0:02:53]} 15. b3 {[%clk 0:02:48]}  Be7 {[%clk 0:02:52]} 16. c4 {[%clk 0:02:48]}  b6 {[%clk 0:02:40]} 17. Kh2 {[%clk 0:02:47]}  Kf8 {[%clk 0:02:39]} 18. Rac1 {[%clk 0:02:46]}  Qd7 {[%clk 0:02:37]} 19. Ng1 {[%clk 0:02:36]}  Ba3 {[%clk 0:02:27]} 20. Rcd1 {[%clk 0:02:33]}  b5 {[%clk 0:02:26]} 21. Qe2 {[%clk 0:02:31]}  a6 {[%clk 0:02:21]} 22. Nf3 {[%clk 0:02:30]}  Be7 {[%clk 0:02:17]} 23. Rc1 {[%clk 0:02:21]}  Ng3 {[%clk 0:02:10]} 24. Bxg3 {[%clk 0:02:07]}  hxg3+ {[%clk 0:02:11]} 25. Kxg3 {[%clk 0:02:07]}  Nh5+ {[%clk 0:02:11]} 26. Kh2 {[%clk 0:02:08]}  Nxf4 {[%clk 0:02:11]} 27. Qd2 {[%clk 0:02:08]}  Nxd3 {[%clk 0:02:05]} 28. Qxd3 {[%clk 0:02:09]}  dxc4 {[%clk 0:02:03]} 29. bxc4 {[%clk 0:02:10]}  Kg7 {[%clk 0:02:04]} 30. Qe4 {[%clk 0:02:04]}  Rad8 {[%clk 0:01:58]} 31. Rc2 {[%clk 0:02:00]}  c5 {[%clk 0:01:53]} 32. cxb5 {[%clk 0:01:50]}  cxd4 {[%clk 0:01:49]} 33. b6 {[%clk 0:01:40]}  d3 {[%clk 0:01:42]} 34. Rb2 {[%clk 0:01:40]}  Qd5 {[%clk 0:01:42]} 35. Qxd5 {[%clk 0:01:37]}  Rxd5 {[%clk 0:01:43]} 36. Kg3 {[%clk 0:01:29]}  Rb8 {[%clk 0:01:41]} 37. Rfb1 {[%clk 0:01:24]}  Rb7 {[%clk 0:01:25]} 38. a4 {[%clk 0:01:15]}  a5 {[%clk 0:01:14]} 39. Kf4 {[%clk 0:01:14]}  Bb4 {[%clk 0:01:12]} 40. Ke3 {[%clk 0:00:59]}  Rxb6 {[%clk 0:01:11]} 41. Rb3 {[%clk 0:00:39]}  d2 {[%clk 0:01:09]} 42. Ke2 {[%clk 0:00:36]}  Rc6 {[%clk 0:01:08]} 43. Rd1 {[%clk 0:00:34]}  Rc2 {[%clk 0:01:07]} 44. Re3 {[%clk 0:00:30]}  Ra2 {[%clk 0:01:07]} 0-1


[Site "https://www.chess.com"]

[Event "Titled Tuesday Blitz November 22 Early 2022"]
[White "Chigaev, Maksim"]
[Black "Aaditya Dhingra"]
[WhiteFideId "4108116"]
[BlackFideId "25678191"]
[WhiteElo "2541"]
[BlackElo "2054"]
[Result "1-0"]
[Round "03"]
[TimeControl "180+1"]
[Date "2022.11.23"]
[WhiteClock "0:01:41"]
[BlackClock "0:01:42"]

1. Nf3 {[%clk 0:03:00]}  c5 {[%clk 0:02:56]} 2. e4 {[%clk 0:03:00]}  Nc6 {[%clk 0:02:55]} 3. Bb5 {[%clk 0:03:00]}  g6 {[%clk 0:02:54]} 4. O-O {[%clk 0:03:00]}  Bg7 {[%clk 0:02:53]} 5. Re1 {[%clk 0:03:01]}  a6 {[%clk 0:02:52]} 6. Bxc6 {[%clk 0:03:00]}  bxc6 {[%clk 0:02:51]} 7. c3 {[%clk 0:02:59]}  Nf6 {[%clk 0:02:47]} 8. d4 {[%clk 0:02:55]}  cxd4 {[%clk 0:02:47]} 9. cxd4 {[%clk 0:02:55]}  O-O {[%clk 0:02:47]} 10. Nc3 {[%clk 0:02:54]}  d6 {[%clk 0:02:47]} 11. h3 {[%clk 0:02:55]}  Rb8 {[%clk 0:02:46]} 12. b3 {[%clk 0:02:55]}  c5 {[%clk 0:02:44]} 13. Be3 {[%clk 0:02:47]}  cxd4 {[%clk 0:02:41]} 14. Bxd4 {[%clk 0:02:48]}  Bb7 {[%clk 0:02:39]} 15. e5 {[%clk 0:02:48]}  dxe5 {[%clk 0:02:36]} 16. Nxe5 {[%clk 0:02:43]}  Rc8 {[%clk 0:02:35]} 17. Nc4 {[%clk 0:02:33]}  Qc7 {[%clk 0:02:11]} 18. Qe2 {[%clk 0:02:06]}  Qc6 {[%clk 0:02:03]} 19. Qf1 {[%clk 0:02:06]}  Rfd8 {[%clk 0:01:58]} 20. Rad1 {[%clk 0:01:51]}  Qc7 {[%clk 0:01:54]} 21. Bb6 {[%clk 0:01:49]}  Rxd1 {[%clk 0:01:44]} 22. Bxc7 {[%clk 0:01:49]}  Rxe1 {[%clk 0:01:44]} 23. Qxe1 {[%clk 0:01:50]}  Rxc7 {[%clk 0:01:44]} 24. Qe5 {[%clk 0:01:50]}  Rd7 {[%clk 0:01:42]} 25. Qb8+ {[%clk 0:01:48]}  Bf8 {[%clk 0:01:42]} 26. Ne5 {[%clk 0:01:41]} 1-0


[Site "https://www.chess.com"]

[Event "Titled Tuesday Blitz November 22 Early 2022"]
[White "Chirilov, James A"]
[Black "Kukreja, Sankalp"]
[WhiteFideId "30976677"]
[BlackFideId "45027676"]
[WhiteElo "1790"]
[BlackElo "2154"]
[Result "0-1"]
[Round "03"]
[TimeControl "180+1"]
[Date "2022.11.23"]
[WhiteClock "0:00:11"]
[BlackClock "0:02:00"]

1. e4 {[%clk 0:03:00]}  c5 {[%clk 0:02:57]} 2. Nf3 {[%clk 0:03:00]}  g6 {[%clk 0:02:56]} 3. d4 {[%clk 0:02:57]}  cxd4 {[%clk 0:02:56]} 4. Nxd4 {[%clk 0:02:58]}  Bg7 {[%clk 0:02:55]} 5. c4 {[%clk 0:02:58]}  Nc6 {[%clk 0:02:53]} 6. Be3 {[%clk 0:02:57]}  Nf6 {[%clk 0:02:53]} 7. Nc3 {[%clk 0:02:56]}  O-O {[%clk 0:02:50]} 8. f3 {[%clk 0:02:53]}  b6 {[%clk 0:02:46]} 9. Be2 {[%clk 0:02:53]}  Bb7 {[%clk 0:02:46]} 10. O-O {[%clk 0:02:54]}  e6 {[%clk 0:02:47]} 11. Ndb5 {[%clk 0:02:45]}  d5 {[%clk 0:02:45]} 12. cxd5 {[%clk 0:02:40]}  exd5 {[%clk 0:02:43]} 13. exd5 {[%clk 0:02:34]}  Nb4 {[%clk 0:02:41]} 14. d6 {[%clk 0:02:17]}  Nfd5 {[%clk 0:02:39]} 15. Bd4 {[%clk 0:02:09]}  Bxd4+ {[%clk 0:02:37]} 16. Qxd4 {[%clk 0:02:10]}  Nc2 {[%clk 0:02:37]} 17. Qd2 {[%clk 0:01:45]}  Nxc3 {[%clk 0:02:36]} 18. Nxc3 {[%clk 0:01:02]}  Nxa1 {[%clk 0:02:33]} 19. Rxa1 {[%clk 0:01:02]}  Qd7 {[%clk 0:02:28]} 20. Bb5 {[%clk 0:01:02]}  Bc6 {[%clk 0:02:29]} 21. Bxc6 {[%clk 0:01:01]}  Qxc6 {[%clk 0:02:29]} 22. d7 {[%clk 0:00:28]}  Rad8 {[%clk 0:02:25]} 23. Rd1 {[%clk 0:00:28]}  f6 {[%clk 0:02:08]} 24. Ne4 {[%clk 0:00:18]}  Rf7 {[%clk 0:02:07]} 25. Qf4 {[%clk 0:00:13]}  f5 {[%clk 0:02:02]} 26. Ng5 {[%clk 0:00:11]}  Rfxd7 {[%clk 0:02:02]} 27. Rc1 {[%clk 0:00:09]}  Qxc1+ {[%clk 0:01:59]} 28. Qxc1 {[%clk 0:00:08]}  Rd1+ {[%clk 0:01:59]} 29. Qxd1 {[%clk 0:00:09]}  Rxd1+ {[%clk 0:02:00]} 30. Kf2 {[%clk 0:00:10]}  Rd2+ {[%clk 0:02:00]} 31. Ke3 {[%clk 0:00:11]} 0-1


[Site "https://www.chess.com"]

[Event "Titled Tuesday Blitz November 22 Early 2022"]
[White "De Souza, Cristiano Gomes"]
[Black "Kouskoutis, Georgios-Alexandros"]
[WhiteFideId "2151758"]
[BlackFideId "4234049"]
[WhiteElo "2068"]
[BlackElo "2187"]
[Result "0-1"]
[Round "03"]
[TimeControl "180+1"]
[Date "2022.11.23"]
[WhiteClock "0:00:07"]
[BlackClock "0:00:09"]

1. d4 {[%clk 0:02:34]}  Nf6 {[%clk 0:02:58]} 2. c4 {[%clk 0:02:27]}  g6 {[%clk 0:02:59]} 3. Nc3 {[%clk 0:02:23]}  d5 {[%clk 0:02:59]} 4. Bf4 {[%clk 0:02:22]}  c6 {[%clk 0:02:54]} 5. e3 {[%clk 0:02:23]}  Bg7 {[%clk 0:02:47]} 6. Nf3 {[%clk 0:02:21]}  O-O {[%clk 0:02:39]} 7. h3 {[%clk 0:02:18]}  Bf5 {[%clk 0:02:21]} 8. Qb3 {[%clk 0:02:15]}  Qb6 {[%clk 0:02:20]} 9. c5 {[%clk 0:02:13]}  Qxb3 {[%clk 0:02:14]} 10. axb3 {[%clk 0:02:13]}  Nbd7 {[%clk 0:02:13]} 11. Ne5 {[%clk 0:02:00]}  Nxe5 {[%clk 0:01:43]} 12. Bxe5 {[%clk 0:01:57]}  g5 {[%clk 0:01:43]} 13. f3 {[%clk 0:01:52]}  Nd7 {[%clk 0:01:43]} 14. Bxg7 {[%clk 0:01:50]}  Kxg7 {[%clk 0:01:43]} 15. Kd2 {[%clk 0:01:44]}  e5 {[%clk 0:01:37]} 16. g4 {[%clk 0:01:39]}  Bg6 {[%clk 0:01:37]} 17. Bd3 {[%clk 0:01:37]}  f5 {[%clk 0:01:20]} 18. Rhf1 {[%clk 0:01:31]}  f4 {[%clk 0:01:06]} 19. Bxg6 {[%clk 0:01:25]}  fxe3+ {[%clk 0:01:00]} 20. Kxe3 {[%clk 0:01:24]}  exd4+ {[%clk 0:00:55]} 21. Kxd4 {[%clk 0:01:24]}  Kxg6 {[%clk 0:00:55]} 22. Ne2 {[%clk 0:01:00]}  Rae8 {[%clk 0:00:54]} 23. Rae1 {[%clk 0:00:56]}  a5 {[%clk 0:00:28]} 24. f4 {[%clk 0:00:27]}  Re4+ {[%clk 0:00:28]} 25. Kc3 {[%clk 0:00:25]}  gxf4 {[%clk 0:00:25]} 26. Nd4 {[%clk 0:00:22]}  Nxc5 {[%clk 0:00:22]} 27. Rxe4 {[%clk 0:00:19]}  Nxe4+ {[%clk 0:00:23]} 28. Kd3 {[%clk 0:00:19]}  Rf6 {[%clk 0:00:11]} 29. Rf3 {[%clk 0:00:17]}  Ng5 {[%clk 0:00:11]} 30. Rf1 {[%clk 0:00:15]}  Nxh3 {[%clk 0:00:11]} 31. Nf5 {[%clk 0:00:15]}  h5 {[%clk 0:00:09]} 32. Nh4+ {[%clk 0:00:13]}  Kg5 {[%clk 0:00:09]} 33. gxh5 {[%clk 0:00:13]}  Kxh4 {[%clk 0:00:09]} 34. Kd4 {[%clk 0:00:13]}  Kxh5 {[%clk 0:00:09]} 35. Ke5 {[%clk 0:00:13]}  Rf8 {[%clk 0:00:09]} 36. Rh1 {[%clk 0:00:12]}  Kg4 {[%clk 0:00:09]} 37. Ra1 {[%clk 0:00:11]}  f3 {[%clk 0:00:09]} 38. Kd6 {[%clk 0:00:12]}  f2 {[%clk 0:00:09]} 39. Kc7 {[%clk 0:00:07]}  f1=Q {[%clk 0:00:09]} 0-1


[Site "https://www.chess.com"]

[Event "Titled Tuesday Blitz November 22 Early 2022"]
[White "Decuigniere, Tom"]
[Black "Viskelis, Darius"]
[WhiteFideId "26093820"]
[BlackFideId "12800830"]
[WhiteElo "2252"]
[BlackElo "2025"]
[Result "1-0"]
[Round "03"]
[TimeControl "180+1"]
[Date "2022.11.23"]
[WhiteClock "0:00:23"]
[BlackClock "0:00:05"]

1. c4 {[%clk 0:03:00]}  e6 {[%clk 0:02:59]} 2. g3 {[%clk 0:03:01]}  d5 {[%clk 0:02:59]} 3. Bg2 {[%clk 0:03:02]}  c5 {[%clk 0:02:59]} 4. Nf3 {[%clk 0:03:02]}  Nc6 {[%clk 0:02:58]} 5. O-O {[%clk 0:03:03]}  Nf6 {[%clk 0:02:58]} 6. cxd5 {[%clk 0:03:03]}  exd5 {[%clk 0:02:58]} 7. d4 {[%clk 0:03:04]}  Be7 {[%clk 0:02:52]} 8. b3 {[%clk 0:02:59]}  O-O {[%clk 0:02:49]} 9. Bb2 {[%clk 0:03:00]}  Bg4 {[%clk 0:02:47]} 10. Nbd2 {[%clk 0:02:56]}  Re8 {[%clk 0:02:43]} 11. h3 {[%clk 0:02:55]}  Bh5 {[%clk 0:02:37]} 12. Re1 {[%clk 0:02:55]}  Rc8 {[%clk 0:02:24]} 13. a3 {[%clk 0:02:47]}  b6 {[%clk 0:02:24]} 14. dxc5 {[%clk 0:02:47]}  bxc5 {[%clk 0:02:23]} 15. Rc1 {[%clk 0:02:45]}  Ne4 {[%clk 0:02:01]} 16. Nxe4 {[%clk 0:02:30]}  dxe4 {[%clk 0:02:02]} 17. Qxd8 {[%clk 0:02:18]}  Rcxd8 {[%clk 0:01:58]} 18. Ne5 {[%clk 0:02:07]}  Nxe5 {[%clk 0:01:58]} 19. Bxe5 {[%clk 0:02:08]}  e3 {[%clk 0:01:58]} 20. f4 {[%clk 0:02:05]}  Rd2 {[%clk 0:01:49]} 21. g4 {[%clk 0:01:59]}  f6 {[%clk 0:01:40]} 22. Bc3 {[%clk 0:01:45]}  Bf7 {[%clk 0:01:39]} 23. Rcd1 {[%clk 0:01:32]}  Bxb3 {[%clk 0:01:26]} 24. Rxd2 {[%clk 0:01:28]}  exd2 {[%clk 0:01:26]} 25. Bxd2 {[%clk 0:01:29]}  c4 {[%clk 0:01:26]} 26. Bd5+ {[%clk 0:01:18]}  Kf8 {[%clk 0:01:26]} 27. Bc1 {[%clk 0:01:05]}  Bc5+ {[%clk 0:01:22]} 28. Kg2 {[%clk 0:00:58]}  Be3 {[%clk 0:01:09]} 29. Kf3 {[%clk 0:00:47]}  Bxc1 {[%clk 0:00:55]} 30. Rxc1 {[%clk 0:00:48]}  Rc8 {[%clk 0:00:55]} 31. Rc3 {[%clk 0:00:46]}  a5 {[%clk 0:00:53]} 32. Ke3 {[%clk 0:00:44]}  Re8+ {[%clk 0:00:46]} 33. Kd2 {[%clk 0:00:43]}  Rc8 {[%clk 0:00:42]} 34. e4 {[%clk 0:00:42]}  Ke7 {[%clk 0:00:37]} 35. Ke3 {[%clk 0:00:42]}  h5 {[%clk 0:00:27]} 36. Kd4 {[%clk 0:00:43]}  hxg4 {[%clk 0:00:25]} 37. hxg4 {[%clk 0:00:44]}  Bd1 {[%clk 0:00:20]} 38. g5 {[%clk 0:00:37]}  fxg5 {[%clk 0:00:21]} 39. fxg5 {[%clk 0:00:38]}  Kd6 {[%clk 0:00:19]} 40. e5+ {[%clk 0:00:36]}  Ke7 {[%clk 0:00:19]} 41. Rxc4 {[%clk 0:00:28]}  Rd8 {[%clk 0:00:16]} 42. Rc7+ {[%clk 0:00:27]}  Kf8 {[%clk 0:00:17]} 43. Kc5 {[%clk 0:00:26]}  Bh5 {[%clk 0:00:12]} 44. e6 {[%clk 0:00:26]}  Rb8 {[%clk 0:00:09]} 45. Kd6 {[%clk 0:00:24]}  Rd8+ {[%clk 0:00:08]} 46. Rd7 {[%clk 0:00:24]}  Ke8 {[%clk 0:00:07]} 47. Bc6 {[%clk 0:00:23]}  Rxd7+ {[%clk 0:00:05]} 48. Bxd7+ {[%clk 0:00:24]}  Kd8 {[%clk 0:00:05]} 49. e7# {[%clk 0:00:23]} 1-0


[Site "https://www.chess.com"]

[Event "Titled Tuesday Blitz November 22 Early 2022"]
[White "Djokic, Mihailo"]
[Black "Stijve, Theo"]
[WhiteFideId "976440"]
[BlackFideId "1331132"]
[WhiteElo "2315"]
[BlackElo "2256"]
[Result "0-1"]
[Round "03"]
[TimeControl "180+1"]
[Date "2022.11.23"]
[WhiteClock "0:01:11"]
[BlackClock "0:00:44"]

1. e4 {[%clk 0:02:30]}  c5 {[%clk 0:02:58]} 2. Nf3 {[%clk 0:02:30]}  a6 {[%clk 0:02:57]} 3. d4 {[%clk 0:02:30]}  cxd4 {[%clk 0:02:57]} 4. Qxd4 {[%clk 0:02:31]}  Nc6 {[%clk 0:02:56]} 5. Qe3 {[%clk 0:02:31]}  e6 {[%clk 0:02:50]} 6. b3 {[%clk 0:02:31]}  Nf6 {[%clk 0:02:49]} 7. Bb2 {[%clk 0:02:30]}  Be7 {[%clk 0:02:48]} 8. Nbd2 {[%clk 0:02:29]}  Qc7 {[%clk 0:02:43]} 9. e5 {[%clk 0:02:28]}  Nd5 {[%clk 0:02:40]} 10. Qe4 {[%clk 0:02:28]}  b5 {[%clk 0:02:34]} 11. a4 {[%clk 0:02:25]}  b4 {[%clk 0:02:26]} 12. Nc4 {[%clk 0:02:25]}  Bb7 {[%clk 0:02:25]} 13. Qg4 {[%clk 0:02:24]}  O-O {[%clk 0:02:18]} 14. O-O-O {[%clk 0:02:17]}  f5 {[%clk 0:02:07]} 15. exf6 {[%clk 0:02:16]}  Bxf6 {[%clk 0:02:05]} 16. Bxf6 {[%clk 0:02:13]}  Rxf6 {[%clk 0:02:01]} 17. Bd3 {[%clk 0:02:07]}  Nc3 {[%clk 0:01:57]} 18. Bxh7+ {[%clk 0:01:53]}  Kxh7 {[%clk 0:01:53]} 19. Ng5+ {[%clk 0:01:53]}  Kg8 {[%clk 0:01:40]} 20. Qh5 {[%clk 0:01:53]}  Qf4+ {[%clk 0:01:35]} 21. Ne3 {[%clk 0:01:49]}  Rh6 {[%clk 0:01:32]} 22. Qf7+ {[%clk 0:01:45]}  Qxf7 {[%clk 0:01:29]} 23. Nxf7 {[%clk 0:01:45]}  Nxd1 {[%clk 0:01:25]} 24. Nxh6+ {[%clk 0:01:45]}  gxh6 {[%clk 0:01:25]} 25. Rxd1 {[%clk 0:01:46]}  d5 {[%clk 0:01:25]} 26. Ng4 {[%clk 0:01:39]}  Kg7 {[%clk 0:01:24]} 27. Rd3 {[%clk 0:01:40]}  Rf8 {[%clk 0:01:21]} 28. Rg3 {[%clk 0:01:40]}  Kh7 {[%clk 0:01:18]} 29. Rh3 {[%clk 0:01:36]}  Nd4 {[%clk 0:01:11]} 30. Rxh6+ {[%clk 0:01:26]}  Kg7 {[%clk 0:01:11]} 31. Rh4 {[%clk 0:01:25]}  Nf5 {[%clk 0:01:04]} 32. Rh3 {[%clk 0:01:24]}  d4 {[%clk 0:00:58]} 33. f3 {[%clk 0:01:20]}  Rc8 {[%clk 0:00:55]} 34. Ne5 {[%clk 0:01:17]}  Ne3 {[%clk 0:00:50]} 35. Rg3+ {[%clk 0:01:15]}  Kf6 {[%clk 0:00:48]} 36. f4 {[%clk 0:01:08]}  Rxc2+ {[%clk 0:00:45]} 37. Kb1 {[%clk 0:01:09]}  Rxg2 {[%clk 0:00:45]} 38. Rh3 {[%clk 0:01:09]}  Be4+ {[%clk 0:00:44]} 39. Kc1 {[%clk 0:01:10]}  Rc2+ {[%clk 0:00:44]} 40. Kb1 {[%clk 0:01:10]}  Rxh2+ {[%clk 0:00:44]} 41. Ka1 {[%clk 0:01:11]}  Rxh3 {[%clk 0:00:44]} 0-1


[Site "https://www.chess.com"]

[Event "Titled Tuesday Blitz November 22 Early 2022"]
[White "Erdogdu, Mert"]
[Black "Jobava, Baadur"]
[WhiteFideId "6301495"]
[BlackFideId "13601520"]
[WhiteElo "2413"]
[BlackElo "2582"]
[Result "0-1"]
[Round "03"]
[TimeControl "180+1"]
[Date "2022.11.22"]
[WhiteClock "0:02:11"]
[BlackClock "0:02:44"]

1. e4 {[%clk 0:03:00]}  d6 {[%clk 0:02:57]} 2. d4 {[%clk 0:03:00]}  Nf6 {[%clk 0:02:58]} 3. Nc3 {[%clk 0:03:01]}  e5 {[%clk 0:02:58]} 4. Nf3 {[%clk 0:03:01]}  Nbd7 {[%clk 0:02:58]} 5. a4 {[%clk 0:03:02]}  Be7 {[%clk 0:02:57]} 6. Bc4 {[%clk 0:03:02]}  O-O {[%clk 0:02:57]} 7. O-O {[%clk 0:03:02]}  a5 {[%clk 0:02:58]} 8. Re1 {[%clk 0:03:02]}  h6 {[%clk 0:02:58]} 9. Ba2 {[%clk 0:03:01]}  Re8 {[%clk 0:02:57]} 10. h3 {[%clk 0:03:02]}  c6 {[%clk 0:02:57]} 11. Be3 {[%clk 0:02:54]}  Qc7 {[%clk 0:02:57]} 12. Qd2 {[%clk 0:02:52]}  Bf8 {[%clk 0:02:57]} 13. Rad1 {[%clk 0:02:51]}  Nb6 {[%clk 0:02:56]} 14. Nh4 {[%clk 0:02:30]}  Be6 {[%clk 0:02:47]} 15. d5 {[%clk 0:02:21]}  cxd5 {[%clk 0:02:48]} 16. exd5 {[%clk 0:02:18]}  Bd7 {[%clk 0:02:47]} 17. Bb3 {[%clk 0:02:12]}  Nc4 {[%clk 0:02:43]} 18. Bxc4 {[%clk 0:02:11]}  Qxc4 {[%clk 0:02:44]} 19. b3 {[%clk 0:02:11]}  Qxh4 {[%clk 0:02:44]} 0-1


[Site "https://www.chess.com"]

[Event "Titled Tuesday Blitz November 22 Early 2022"]
[White "Farmani Anosheh, Armin"]
[Black "Winkels, Marcel"]
[WhiteFideId "24613240"]
[BlackFideId "1003887"]
[WhiteElo "2289"]
[BlackElo "1900"]
[Result "1/2-1/2"]
[Round "03"]
[TimeControl "180+1"]
[Date "2022.11.23"]
[WhiteClock "0:00:18"]
[BlackClock "0:01:01"]

1. d4 {[%clk 0:03:00]}  Nf6 {[%clk 0:02:55]} 2. c4 {[%clk 0:03:01]}  g6 {[%clk 0:02:55]} 3. Nf3 {[%clk 0:03:02]}  Bg7 {[%clk 0:02:54]} 4. g3 {[%clk 0:03:02]}  c6 {[%clk 0:02:54]} 5. Bg2 {[%clk 0:03:02]}  d5 {[%clk 0:02:54]} 6. cxd5 {[%clk 0:02:43]}  cxd5 {[%clk 0:02:53]} 7. Ne5 {[%clk 0:02:44]}  O-O {[%clk 0:02:50]} 8. Nc3 {[%clk 0:02:42]}  Bf5 {[%clk 0:02:49]} 9. Qb3 {[%clk 0:02:31]}  Nc6 {[%clk 0:02:48]} 10. Nxc6 {[%clk 0:02:28]}  bxc6 {[%clk 0:02:47]} 11. O-O {[%clk 0:02:29]}  Rb8 {[%clk 0:02:46]} 12. Qa4 {[%clk 0:02:27]}  Ne4 {[%clk 0:02:21]} 13. e3 {[%clk 0:01:57]}  Qd6 {[%clk 0:02:04]} 14. Qxa7 {[%clk 0:01:43]}  Ra8 {[%clk 0:01:58]} 15. Nxe4 {[%clk 0:01:43]}  Bxe4 {[%clk 0:01:54]} 16. Qc5 {[%clk 0:01:36]}  Qxc5 {[%clk 0:01:46]} 17. dxc5 {[%clk 0:01:37]}  Bc2 {[%clk 0:01:35]} 18. f4 {[%clk 0:01:12]}  Rfb8 {[%clk 0:01:33]} 19. Rf2 {[%clk 0:01:12]}  Bxb2 {[%clk 0:01:16]} 20. Bxb2 {[%clk 0:01:00]}  Rxb2 {[%clk 0:01:16]} 21. a4 {[%clk 0:01:01]}  Rb1+ {[%clk 0:01:09]} 22. Rxb1 {[%clk 0:01:01]}  Bxb1 {[%clk 0:01:10]} 23. Rb2 {[%clk 0:00:57]}  Bd3 {[%clk 0:01:04]} 24. Rb6 {[%clk 0:00:18]}  Rxa4 {[%clk 0:01:02]} 25. Rxc6 {[%clk 0:00:18]}  Ra1+ {[%clk 0:01:01]} 26. Kf2 {[%clk 0:00:19]}  Ra2+ {[%clk 0:01:01]} 27. Kg1 {[%clk 0:00:19]}  Ra1+ {[%clk 0:01:01]} 28. Kf2 {[%clk 0:00:19]}  Ra2+ {[%clk 0:01:01]} 29. Kg1 {[%clk 0:00:18]}  Ra1+ {[%clk 0:01:01]} 1/2-1/2


[Site "https://www.chess.com"]

[Event "Titled Tuesday Blitz November 22 Early 2022"]
[White "Fecker, Noah"]
[Black "Samaganova, Aleksandra"]
[WhiteFideId "1334263"]
[BlackFideId "13800221"]
[WhiteElo "2291"]
[BlackElo "1864"]
[Result "1-0"]
[Round "03"]
[TimeControl "180+1"]
[Date "2022.11.23"]
[WhiteClock "0:00:25"]
[BlackClock "0:00:03"]

1. Nf3 {[%clk 0:03:00]}  c5 {[%clk 0:02:59]} 2. e4 {[%clk 0:03:00]}  e6 {[%clk 0:02:54]} 3. b4 {[%clk 0:03:00]}  b6 {[%clk 0:02:53]} 4. bxc5 {[%clk 0:02:59]}  bxc5 {[%clk 0:02:53]} 5. Nc3 {[%clk 0:02:54]}  Nc6 {[%clk 0:02:47]} 6. g3 {[%clk 0:02:52]}  Nf6 {[%clk 0:02:44]} 7. Bg2 {[%clk 0:02:52]}  d6 {[%clk 0:02:40]} 8. e5 {[%clk 0:02:48]}  Nd5 {[%clk 0:02:35]} 9. Nxd5 {[%clk 0:02:45]}  exd5 {[%clk 0:02:36]} 10. Qe2 {[%clk 0:02:42]}  Be7 {[%clk 0:02:30]} 11. O-O {[%clk 0:02:37]}  O-O {[%clk 0:02:25]} 12. Rb1 {[%clk 0:02:33]}  Bf5 {[%clk 0:02:20]} 13. d3 {[%clk 0:02:29]}  Bg4 {[%clk 0:02:16]} 14. exd6 {[%clk 0:02:28]}  Bxd6 {[%clk 0:02:13]} 15. Be3 {[%clk 0:02:29]}  Re8 {[%clk 0:02:02]} 16. Qd2 {[%clk 0:02:24]}  Qc7 {[%clk 0:01:54]} 17. Rfe1 {[%clk 0:02:11]}  h6 {[%clk 0:01:49]} 18. Qc1 {[%clk 0:01:41]}  Rab8 {[%clk 0:01:37]} 19. Rxb8 {[%clk 0:01:40]}  Rxb8 {[%clk 0:01:37]} 20. h3 {[%clk 0:01:40]}  Bh5 {[%clk 0:01:37]} 21. g4 {[%clk 0:01:38]}  Bg6 {[%clk 0:01:37]} 22. Nh4 {[%clk 0:01:39]}  d4 {[%clk 0:01:29]} 23. Bd2 {[%clk 0:01:28]}  Bh7 {[%clk 0:01:29]} 24. Qa3 {[%clk 0:01:17]}  Ne5 {[%clk 0:01:08]} 25. Qa6 {[%clk 0:01:11]}  Rb6 {[%clk 0:01:02]} 26. Qa4 {[%clk 0:01:11]}  Rb8 {[%clk 0:00:58]} 27. Bd5 {[%clk 0:01:05]}  Be7 {[%clk 0:00:45]} 28. Bf4 {[%clk 0:00:56]}  Bd6 {[%clk 0:00:41]} 29. Bg3 {[%clk 0:00:49]}  Ng6 {[%clk 0:00:18]} 30. Re8+ {[%clk 0:00:44]}  Rxe8 {[%clk 0:00:14]} 31. Qxe8+ {[%clk 0:00:45]}  Nf8 {[%clk 0:00:15]} 32. Bxd6 {[%clk 0:00:37]}  Qxd6 {[%clk 0:00:15]} 33. Qxf7+ {[%clk 0:00:35]}  Kh8 {[%clk 0:00:15]} 34. Nf5 {[%clk 0:00:35]}  Qf6 {[%clk 0:00:11]} 35. Nxh6 {[%clk 0:00:33]}  a5 {[%clk 0:00:04]} 36. Qxf6 {[%clk 0:00:23]}  gxf6 {[%clk 0:00:04]} 37. Nf7+ {[%clk 0:00:24]}  Kg7 {[%clk 0:00:04]} 38. Nd6 {[%clk 0:00:25]}  Nd7 {[%clk 0:00:04]} 39. Nb7 {[%clk 0:00:25]}  a4 {[%clk 0:00:03]} 40. Be6 {[%clk 0:00:25]}  Ne5 {[%clk 0:00:03]} 41. Nxc5 {[%clk 0:00:25]}  Nf3+ {[%clk 0:00:04]} 42. Kf1 {[%clk 0:00:24]}  Bg8 {[%clk 0:00:03]} 43. Bxg8 {[%clk 0:00:24]}  Kxg8 {[%clk 0:00:03]} 44. Ke2 {[%clk 0:00:24]}  Ne5 {[%clk 0:00:03]} 45. Nxa4 {[%clk 0:00:24]}  Kf7 {[%clk 0:00:04]} 46. Nc5 {[%clk 0:00:25]}  Ke7 {[%clk 0:00:03]} 47. Nb3 {[%clk 0:00:25]}  Nc6 {[%clk 0:00:03]} 48. h4 {[%clk 0:00:25]}  Kf7 {[%clk 0:00:03]} 49. h5 {[%clk 0:00:25]}  Kg7 {[%clk 0:00:03]} 50. a4 {[%clk 0:00:25]}  Kh6 {[%clk 0:00:03]} 51. a5 {[%clk 0:00:25]}  Kg5 {[%clk 0:00:03]} 52. f3 {[%clk 0:00:24]}  f5 {[%clk 0:00:04]} 53. a6 {[%clk 0:00:24]}  fxg4 {[%clk 0:00:03]} 54. fxg4 {[%clk 0:00:25]} 1-0


[Site "https://www.chess.com"]